Cogmind - Beta 12 @@@ ROGUE MODE // 2023.05.03 @ 19:54:06 Player: deadnoob Result: Destroyed by S-43 Plague with Heavy Machine Gun Performance ------------- Evolutions (9) 4500 Regions Visited (32) 6400 Robots Destroyed (475) 2375 Value Destroyed (23625) 23625 Prototype IDs (88) 1760 Alien Tech Used (5) 1000 Bonus (21630) 21630 TOTAL SCORE: 61290 Bonus ------- Triggered High Security 500 Triggered Max Security 1000 High Alert Combat Kills 10905 Follower Combat Kills 660 Entered Garrisons 200 Entered DSFs 500 Aligned with FarCom 300 Met Imprinter 300 Destroyed Z-Imprinter 1000 Triggered Deep Caves Wall 500 Exposed GOLEM Chamber 500 Met Warlord at Base 500 MAIN.C Attacked Warlord 500 Used Core Reset Matrix 3000 Met Warlord at Research 2000 Scanned by Researcher 500 Friendly Fire -1235 Cogmind --------- Core Integrity 0/1600 Matter 288/300 Energy 79/100 System Corruption 4% Temperature Cool (0) Movement Core (50) Location -1/Command Parts ------- > --- POWER (4) -------- (None) > --- PROPULSION (6) --- Assembled Alloy Leg > --- UTILITY (13) ----- (None) > --- WEAPON (2) ------- (None) > --- INVENTORY (5) ---- Quantum Reactor Nova Cannon Enhanced Nova Cannon Vortex Lance (40) Peak State ------------ > --- POWER ------------ Assembled Flux Generator Quantum Reactor Quantum Reactor > --- PROPULSION ------- Advanced Heavy Treads Biometal Heavy Treads Biometal Heavy Treads > --- UTILITY ---------- Advanced Power Amplifier Huge Storage Unit Assembled Biocell Array Assembled Combat Suite Advanced Particle Accelerator Quantum Capacitor Layered Heavy Armor Plating Makeshift Ablative Armor Improved Force Field GOLEM Unit > --- WEAPON ----------- Nova Cannon Assembled Focal Cannon > --- INVENTORY -------- Quantum Reactor Quantum Reactor Quantum Reactor Experimental Energy Well Zionite Biocell Zionite Biocell Improved Transmission Jammer Improved Weapon Shielding Improved Weapon Shielding Hardened Medium Armor Plating Advanced Powered Armor Improved Force Field Hacking Suite Long-range Tractor Beam Terrabomb Scatter Rocket Array Field Lobotomy Kit RU-N14's Throwing Claymores v3 RU-N14's Throwing Claymores v3 RU-N14's Throwing Claymores v3 Vortex Lance [Rating: 210] Favorites ----------- Power Assembled Flux Generator Engine Heavy Ion Engine Power Core Enhanced Nuclear Core Reactor Assembled Flux Generator Propulsion Assembled Alloy Leg Treads Heavy Treads Leg Assembled Alloy Leg Wheel Compact Wheel Hover Unit Backup Propulsion III Flight Unit Improved VTOL Module Utility High-capacity Storage Unit Device GOLEM Unit Storage High-capacity Storage Unit Processor Advanced Targeting Computer Hackware Hacking Suite Protection Assembled Alloy Armor Weapon Assembled Focal Cannon Energy Gun Quantum Rifle Energy Cannon Assembled Focal Cannon Ballistic Gun Enhanced Autogun Launcher Scatter Rocket Array Special Weapon Plasma Cutter Impact Weapon Power Maul Slashing Weapon Chainsword Piercing Weapon Vortex Lance Special Melee Weapon Advanced Datajack Build | -11 -10 -10 -10 -9 -8 -8 -7 -7 -7 -7 -6 -6 -6 -6 -6 -6 -6 -5 -5 -5 -5 -5 -4 -4 -4 -4 -3 -3 -2 -2 -1 -1 ------- Run | Jun Mat Min Exi Min Mat Sto Fac Gar Fac DSF Fac Was Fac Low Low Zio Dee Pro Fac Upp Upp Zhi Pro Fac Upp War Pro Res Res Qua Acc Com Slots Evolved 18 | . . . . . 4 . 2 . . . 2 . . . . . . . 2 . . . . 2 . . . 2 2 . 2 . Power 3 | . . . . . . . 1 . . . . . . . . . . . . . . . . . . . . 1 . . 1 . Propulsion 4 | . . . . . 2 . . . . . . . . . . . . . . . . . . . . . . . 2 . . . Utility 11 | . . . . . 2 . 1 . . . 2 . . . . . . . 2 . . . . 2 . . . 1 . . 1 . Weapon . | . . . . . . . . . . . . . . . . . . . . . . . . . . . . . . . . . Parts Attached 448 | 1 12 4 . 8 33 16 7 34 . 24 9 16 45 6 9 13 48 3 7 2 4 7 14 14 . 15 1 9 17 12 53 5 Power 39 | . 1 . . . 3 1 1 3 . 1 1 4 3 1 1 2 4 . . . . . . . . 1 . 1 3 . 8 . Engine 9 | . 1 . . . 1 1 . 2 . . 1 . 1 . 1 1 . . . . . . . . . . . . . . . . Core 9 | . . . . . 2 . 1 1 . 1 . . 1 1 . 1 1 . . . . . . . . . . . . . . . Reactor 21 | . . . . . . . . . . . . 4 1 . . . 3 . . . . . . . . 1 . 1 3 . 8 . Propulsion 63 | . 2 1 . 4 8 3 1 4 . 8 1 3 1 . . 2 6 2 2 . . 2 . 4 . 1 . 2 4 . 2 . Treads 29 | . . . . . . . . 1 . 8 1 3 1 . . 2 2 2 2 . . . . 2 . . . 1 4 . . . Leg 30 | . 2 1 . 4 8 2 1 3 . . . . . . . . 4 . . . . 2 . 1 . 1 . 1 . . . . Wheel 3 | . . . . . . . . . . . . . . . . . . . . . . . . 1 . . . . . . 2 . Hover . | . . . . . . . . . . . . . . . . . . . . . . . . . . . . . . . . . Flight 1 | . . . . . . 1 . . . . . . . . . . . . . . . . . . . . . . . . . . Utility 196 | . 5 . . 1 5 6 4 8 . 7 5 9 26 3 4 5 24 . 4 2 . 4 12 7 . 8 . 6 9 7 25 . Device 101 | . 1 . . 1 1 1 1 5 . 3 1 3 18 1 3 1 12 . 1 1 . 2 7 3 . 6 . 5 5 4 15 . Storage 16 | . 1 . . . 2 1 . . . 1 . . . . . 1 2 . 1 . . 2 . 1 . 1 . . 1 . 2 . Processor 7 | . . . . . . . 1 . . . 1 . 2 . . . . . . . . . . 1 . . . 1 . 1 . . Hackware 3 | . . . . . . 2 . . . . . . 1 . . . . . . . . . . . . . . . . . . . Protection 69 | . 3 . . . 2 2 2 3 . 3 3 6 5 2 1 3 10 . 2 1 . . 5 2 . 1 . . 3 2 8 . Artifact . | . . . . . . . . . . . . . . . . . . . . . . . . . . . . . . . . . Weapon 150 | 1 4 3 . 3 17 6 1 19 . 8 2 . 15 2 4 4 14 1 1 . 4 1 2 3 . 5 1 . 1 5 18 5 Energy Gun 33 | . 3 1 . 3 5 . . 2 . 3 1 . 6 1 2 2 3 . . . . . . . . 1 . . . . . . Energy Cannon 23 | . . . . . . . . 1 . . . . 2 . . . 8 . . . . . . . . . . . . 2 7 3 Ballistic Gun 19 | 1 . . . . 6 3 1 7 . 1 . . . . . . . . . . . . . . . . . . . . . . Ballistic Cannon . | . . . . . . . . . . . . . . . . . . . . . . . . . . . . . . . . . Launcher 50 | . 1 2 . . 6 1 . 6 . 4 . . 6 1 1 1 3 1 1 . 4 . 2 3 . 1 1 . . 1 4 . Special Weapon 14 | . . . . . . . . . . . . . . . 1 . . . . . . 1 . . . 1 . . . 2 7 2 Impact Weapon 1 | . . . . . . . . . . . . . 1 . . . . . . . . . . . . . . . . . . . Slashing Weapon 6 | . . . . . . 2 . 3 . . . . . . . 1 . . . . . . . . . . . . . . . . Piercing Weapon 1 | . . . . . . . . . . . . . . . . . . . . . . . . . . 1 . . . . . . Special Melee Weapon 3 | . . . . . . . . . . . 1 . . . . . . . . . . . . . . 1 . . 1 . . . Unidentified Prototypes 45 | . . . . . 3 3 1 . . . . . 2 . . . 14 . . 1 . 2 1 . . 10 . 1 3 2 2 . Corrupted Parts 1 | . . . . . . . . . . . . . . . . . . . . . . . . . . . . . . 1 . . System Corruption 1 | . . . . . . . . . . . . . . . . . . . . . . . . . . . . . . 1 . . Parts Lost 71 | . 4 1 . . 1 . . 8 . 8 . . 2 . . . . . 1 . 1 . 6 . . . . . . 5 33 1 Power 11 | . 1 . . . . . . 1 . 1 . . . . . . . . . . . . . . . . . . . 1 7 . Propulsion 17 | . 2 1 . . . . . 4 . 2 . . . . . . . . . . 1 . 1 . . . . . . . 6 . Utility 35 | . 1 . . . 1 . . 3 . 4 . . 1 . . . . . 1 . . . 4 . . . . . . 3 17 . Weapon 8 | . . . . . . . . . . 1 . . 1 . . . . . . . . . 1 . . . . . . 1 3 1 Highest Loss Streak 20 | . 3 1 . . 1 . . 3 . 5 . . 1 . . . . . 1 . 1 . 4 . . . . . . 4 20 1 To Critical Strikes . | . . . . . . . . . . . . . . . . . . . . . . . . . . . . . . . . . Average Slot Usage (%) 81 | . 93 100 100 100 95 97 84 94 100 97 97 90 80 79 80 65 76 72 78 69 74 63 73 87 89 86 84 83 71 72 67 4 Engine 3 | . 13 14 14 14 6 9 7 7 15 10 6 1 2 1 1 4 . . . . . . . . . . . . . . . . Core 2 | . . . . . 2 . . 3 . 3 6 . 1 10 10 4 4 . . . . . . . . . . . . . . . Reactor 3 | . . . . . . . . . . . . 10 9 . . . 5 6 5 4 5 5 5 5 5 4 5 8 9 12 11 . Treads 7 | . . . . . . . . 1 7 27 26 18 13 13 13 9 9 6 7 11 9 4 . 1 10 8 5 3 11 13 10 . Leg 12 | . 25 28 28 28 32 35 30 27 23 2 . . . . . . 5 13 11 9 11 11 20 16 10 11 15 13 1 . . 4 Device 14 | . 4 . . 9 12 9 7 8 15 17 17 19 13 13 12 9 11 6 18 17 17 17 18 23 26 25 26 26 20 16 21 . Storage 8 | . 14 14 14 14 9 9 7 7 7 11 6 6 6 6 6 4 7 13 10 11 11 10 11 9 10 10 10 6 8 8 7 . Processor 3 | . . . . . . . 1 . . . 6 6 10 13 13 13 5 . . . . . . 3 . . . 2 . . . . Protection 9 | . 6 14 14 4 13 7 12 19 15 8 13 12 9 5 6 5 10 13 10 5 5 5 6 14 15 14 10 9 12 12 8 . Energy Gun 4 | . 20 26 14 26 9 . . . 15 10 8 13 12 11 5 4 3 . . . . . . . . 1 . . . . . . Energy Cannon 4 | . . . . . . . . 1 . . . . . 1 . . 7 12 10 6 9 3 8 9 10 5 9 9 7 6 5 . Ballistic Gun 1 | . 6 . . . 7 12 7 7 . 2 3 . . . . . . . . . . . . . . . . . . . . . Naked Turns . | . . . . . . . . . . . . . . . . . . . . . . . . . . . . . . . . . Heaviest Build 248 | 11 22 22 22 27 51 56 78 93 90 92 87 113 124 110 117 114 132 132 141 141 123 123 150 144 144 145 145 165 219 231 248 8 Greatest Support 220 | 20 20 20 20 25 55 60 60 60 35 112 107 140 140 140 140 140 140 60 60 60 60 116 116 113 60 85 85 110 220 220 220 3 Greatest Overweight (x) 11 | . 6 1 1 1 1 1 1 2 2 2 . . . . . 1 2 2 2 2 2 2 1 2 2 4 1 2 2 1 11 2 Average Overweight (x) . | . . 1 1 . . . 1 1 2 . . . . . . . . 1 1 2 1 . . 1 1 1 1 1 . . 1 . Largest Inventory Capacity 25 | 8 10 10 10 10 15 20 20 20 20 20 20 20 20 20 20 20 20 20 20 20 20 20 20 20 20 20 20 20 25 25 25 5 Average Capacity 18 | 8 9 10 10 10 14 15 20 20 20 20 20 20 20 20 20 16 19 20 19 20 20 18 20 19 20 20 20 20 23 25 24 5 Most Carried 25 | 6 10 10 10 10 15 20 20 20 20 20 20 20 20 20 20 20 20 20 20 20 20 20 19 20 20 20 20 20 25 25 24 5 Average Carried 17 | 5 9 9 9 9 14 15 19 17 19 18 19 19 19 19 20 15 18 19 18 19 19 16 16 17 20 19 19 19 22 23 17 4 Final Capacity 25 | 8 10 10 10 10 15 20 20 20 20 20 20 20 20 20 20 20 20 20 20 20 20 20 20 20 20 20 20 20 25 25 5 5 Final Carried 25 | 5 9 9 10 10 15 20 20 20 20 20 20 20 20 20 20 20 20 20 20 20 20 18 13 20 20 20 20 20 25 17 4 4 Class Distribution -------------------- 38% | Mutant 34% | Golem 18% | Scavenger-Mutant 3% | Generator-Mutant Dominant Class ---------------- Mutant | -10/Materials Mutant | -10/Mines Mutant | -10/Exiles Mutant | -9/Mines Scavenger-Mutant | -8/Materials Hacker-Mutant | -8/Storage Mutant | -7/Factory Mutant | -7/Garrison Mutant | -7/Factory Mutant | -7/DSF Mutant | -6/Factory Scavenger-Mutant | -6/Waste Scavenger-Mutant | -6/Factory Mutant | -6/Lower Caves Mutant | -6/Lower Caves Mutant | -6/Zion Scavenger-Mutant | -6/Deep Caves Golem | -5/Proximity Caves Golem | -5/Factory Golem | -5/Upper Caves Golem | -5/Upper Caves Golem | -5/Zhirov Golem | -4/Proximity Caves Golem | -4/Factory Golem | -4/Upper Caves Golem | -4/Warlord Golem | -3/Proximity Caves Infiltrator-Golem | -3/Research Mutant | -2/Research Mutant | -2/Quarantine Generator-Mutant | -1/Access Mutant | -1/Command Resources | -11 -10 -10 -10 -9 -8 -8 -7 -7 -7 -7 -6 -6 -6 -6 -6 -6 -6 -5 -5 -5 -5 -5 -4 -4 -4 -4 -3 -3 -2 -2 -1 -1 ----------- Run | Jun Mat Min Exi Min Mat Sto Fac Gar Fac DSF Fac Was Fac Low Low Zio Dee Pro Fac Upp Upp Zhi Pro Fac Upp War Pro Res Res Qua Acc Com Matter Collected 9059 | 200 215 2 . 176 621 604 40 751 59 413 . 270 757 50 120 20 433 347 123 57 437 26 505 689 . 39 26 286 198 305 1234 56 Remotely 2710 | . . . . . . . . 135 . 404 . . 369 . . . . . . . . . 183 275 . . . . 46 183 1115 . Salvage Created 22102 | . 469 43 . 46 987 909 168 962 89 601 28 328 1566 . 40 . 987 718 955 285 1103 183 750 2084 . . 249 1423 71 1012 6046 . Parts 1000 | . 27 10 . 2 73 53 10 51 7 32 2 4 60 . 3 . 30 31 54 11 49 9 29 134 . . 9 89 . 17 204 . Haulers Intercepted 18 | . 2 . . . 3 5 1 . 1 . . . 1 . . . . . . . 1 . . 1 . . . . 1 . 2 . Recyclers Shooed 8 | . . . . . . . 1 . . . . . 3 . . . . . 1 . . . . 1 . . . . . . 2 . Parts Field Recycled . | . . . . . . . . . . . . . . . . . . . . . . . . . . . . . . . . . Retrieved Matter . | . . . . . . . . . . . . . . . . . . . . . . . . . . . . . . . . . Parts Self-Destructed 109 | . . . . . . . . . . . . . . . 3 . . 24 . 11 34 . 29 . . . 8 . . . . . Prevented 2 | . . . . . . . . . . . . . . . . . . . . . 2 . . . . . . . . . . . Kills | -11 -10 -10 -10 -9 -8 -8 -7 -7 -7 -7 -6 -6 -6 -6 -6 -6 -6 -5 -5 -5 -5 -5 -4 -4 -4 -4 -3 -3 -2 -2 -1 -1 ------- Run | Jun Mat Min Exi Min Mat Sto Fac Gar Fac DSF Fac Was Fac Low Low Zio Dee Pro Fac Upp Upp Zhi Pro Fac Upp War Pro Res Res Qua Acc Com Combat Hostiles Destroyed 423 | . 14 6 . 1 24 9 2 27 . 13 . . 26 . . . 43 11 13 5 28 . 14 34 . . 6 16 . 25 106 . Melee 9 | . . . . . . 2 2 5 . . . . . . . . . . . . . . . . . . . . . . . . Guns 54 | . 12 . . 1 8 7 . 5 . 4 . . 13 . . . 4 . . . . . . . . . . . . . . . Cannons 114 | . . . . . . . . . . . . . 1 . . . 2 6 10 5 7 . 10 17 . . 2 15 . 3 36 . AOE 240 | . 2 6 . . 16 . . 17 . 9 . . 11 . . . 34 5 3 . 21 . 4 17 . . 4 . . 22 69 . Classes Destroyed 30 | . 5 . . . 5 3 . 1 . 2 . . 2 . 1 . 4 . . . . . 1 . . . . . . 3 3 . Worker 24 | . . . . . 4 2 . . . . . . 3 . . . . . . . . . . 5 . . . . . 1 9 . Builder 26 | . . . . . 4 . . . 1 . . . 5 . . . . . 1 . . . . 6 . . . 2 . . 7 . Tunneler 2 | . . . . . . . . . . . . . 1 . . . . . . . . . . . . . . . . . 1 . Hauler 18 | . 2 . . . 3 5 1 . 1 . . . 1 . . . . . . . 1 . . 1 . . . . 1 . 2 . Recycler 19 | . . . . . 2 1 . . . . . . 2 . . . . . 1 . . . . 4 . . . 1 . 2 6 . Carrier 1 | . . . . . . . . . . . . . . . . . . . . . . . . . . . . . . . 1 . Minesweeper 2 | . . . . . . . . . . . . . . . 1 . . 1 . . . . . . . . . . . . . . Mechanic 9 | . . . . . . 1 . . . . . . . . . . . . . . 1 . . 1 . . 1 . . 1 4 . Operator 4 | . 1 . . . 1 . . . . . . . . . . . . . . . . . . 1 . . . . . . 1 . Drone 3 | . . . . . . . . . . . . . . . . . . . . . . . 2 . . . 1 . . . . . Watcher 13 | . 1 . . . . 1 . . 1 . 1 . . . . . . . 2 . . . . 1 . . . 2 . . 4 . Swarmer 57 | . 6 6 . . 6 1 . 4 . . . . 3 . . . . 5 . 1 9 . 1 15 . . . . . . . . Saboteur 5 | . . . . . . . . . . . . . . . . . . . . . . . . . . . . . . 1 4 . Grunt 159 | . 8 . . 1 14 3 1 17 . 6 . . 13 . . . . 4 2 1 11 . 7 4 . . 4 2 . 6 55 . Brawler 19 | . . . . . . 1 . 1 . 1 . . . . . . . . . . 3 . 1 1 . . . . . 4 7 . Duelist 6 | . . . . . . 1 . 1 . . . . . . . . . . . . 1 . . . . . . . . . 3 . Protector 8 | . . . . . . . . . . . . . . . . . . . . . . . . . . . . . . 2 6 . Sentry 34 | . . . . . 2 2 1 3 . 1 . . 5 . . . . . 2 1 1 . 1 1 . . 1 4 . 3 6 . Specialist 4 | . . . . . . . . . . 4 . . . . . . . . . . . . . . . . . . . . . . Hunter 33 | . . . . . 2 1 . . . . . . 1 . . . . . 5 . 2 . 2 2 . . . 2 . 3 13 . Programmer 40 | . . . . . . . . 1 . . . . 3 . . . . 1 3 2 . . . 11 . . . 8 . 4 7 . Heavy 2 | . . . . . . . . . . 1 . . . . . . . . 1 . . . . . . . . . . . . . Behemoth 3 | . . . . . . . . . . . . . 1 . . . . 1 . . 1 . . . . . . . . . . . Enhanced Grunt 3 | . . . . . . . . . . . . . . . . . 1 . . . . 2 . . . . . . . . . . Investigator 1 | . . . . . . . . . . . . . . . . . . . . . . . . . . . . . . . 1 . Striker 3 | . . . . . . . . . . . . . . . . . . . . . . . . . . . . . . . 3 . Executioner 4 | . . . . . . . . . . . . . . . . . . . . . . . . . . . . . . 2 2 . Z-Light 4 | . . . . . . . . . . . . . . . . . 4 . . . . . . . . . . . . . . . Packrat 3 | . . . . . . . . . . . . . . . . . . 3 . . . . . . . . . . . . . . Assembler 2 | . . . . . . . . . . . . . . . . . 2 . . . . . . . . . . . . . . . Assembled 36 | . . . . . . . . . . . . . . . . . 36 . . . . . . . . . . . . . . . Golem 3 | . . . . . . . . . . . . . . . . . 3 . . . . . . . . . . . . . . . Best Kill Streak 38 | . 5 3 . 1 11 6 1 10 1 4 1 . 12 . 1 . 38 5 4 3 10 . 4 13 . . 5 6 1 29 35 . Combat Bots Only 36 | . 3 3 . 1 5 3 1 10 . 4 . . 7 . . . 36 5 4 3 9 . 4 10 . . 4 6 . 25 28 . Max Kills in Single Turn 35 | . 2 2 . 1 3 2 1 2 1 2 1 . 4 . 1 . 35 5 3 1 6 1 2 10 . . 3 1 1 13 10 . Gunslinging 1 | . . . . . . . . 1 . . . . 1 . . . . . . . . . . . . . . . . . . . Exploded 34 | . 2 2 . . 2 . . 2 . 2 . . 2 . . . 34 5 3 . 5 . 2 8 . . 2 . . 10 9 . Melee 1 | . . . . . . 1 1 1 . . . . . . . . . . . . . . . . . . . . . . . . Uniques/NPCs Destroyed 1 | . . . . . . . . . . . . . . . . . 1 . . . . . . . . . . . . . . . Z-Imprinter (-6/Deep Caves) Combat | -11 -10 -10 -10 -9 -8 -8 -7 -7 -7 -7 -6 -6 -6 -6 -6 -6 -6 -5 -5 -5 -5 -5 -4 -4 -4 -4 -3 -3 -2 -2 -1 -1 -------- Run | Jun Mat Min Exi Min Mat Sto Fac Gar Fac DSF Fac Was Fac Low Low Zio Dee Pro Fac Upp Upp Zhi Pro Fac Upp War Pro Res Res Qua Acc Com Damage Taken 25319 | . 728 163 . . 721 450 75 1519 . 1415 81 . 2070 . 66 . 1020 967 1061 268 875 . 1967 559 . . 108 401 8 2940 7456 401 Core 3193 | . 207 14 . . 70 29 . 200 . 87 . . 72 . 14 . 134 118 90 . 151 . 144 22 . . . 39 . 200 1227 375 Absorbed by Shields 7465 | . . . . . 116 43 34 201 . 73 . . 706 . 71 . 229 . 527 . . . 685 594 . . 118 361 8 374 3325 . Reduced by Siege Mode 476 | . . . . . . . . . . . . . 134 . . . 70 . . . . . . . . . . . . . 272 . Redirected to Shielding 270 | . 8 1 . . . . . . . . . . . . . . 42 . . . . . . . . . . . . . 219 . Regen/Repaired (Parts) 186 | . . . . . . . . . . . . . . . . 129 . . . . . . . . . 57 . . . . . . Core Remaining (%) 72 | 100 . . . 11 . 82 . . . 59 . . . . . . . 60 . . . . 61 . . . 92 97 . 86 . . Volleys Fired 1061 | . 46 6 . 1 71 38 . 63 6 34 5 9 103 31 31 3 48 30 43 18 44 22 44 66 . 6 8 48 7 38 187 5 Largest 2 | . 2 2 . 2 2 2 . 2 2 2 2 2 2 2 2 1 2 2 2 2 2 1 2 2 . 2 2 2 2 1 2 1 Hottest 188 | . 112 112 . 112 131 50 . 188 188 188 119 188 188 175 114 94 175 50 50 50 50 25 50 50 . 50 50 50 50 113 113 120 Shots Fired 1538 | . 85 7 . 2 116 76 . 93 12 56 10 11 149 33 34 3 80 58 73 39 51 23 69 107 . 7 14 82 13 38 192 5 Gun 605 | . 78 2 . 2 90 76 . 60 12 40 10 11 127 33 25 3 36 . . . . . . . . . . . . . . . Cannon 736 | . . . . . . . . 9 . . . . 6 . . . 42 57 72 39 45 2 64 102 . 7 12 82 13 34 147 3 Launcher 137 | . 7 5 . . 26 . . 24 . 16 . . 16 . . . 2 1 1 . 6 . 5 5 . . 2 . . 4 17 . Special 60 | . . . . . . . . . . . . . . . 9 . . . . . . 21 . . . . . . . . 28 2 Kinetic 206 | . 24 . . . 38 76 . 58 . 5 5 . . . . . . . . . . . . . . . . . . . . . Thermal 1133 | . 54 2 . 2 52 . . 11 12 35 5 11 127 33 34 3 52 57 72 39 45 23 64 102 . 7 12 82 13 34 147 3 Explosive 165 | . 7 5 . . 26 . . 24 . 16 . . 16 . . . 2 1 1 . 6 . 5 5 . . 2 . . 4 45 . Electromagnetic 32 | . . . . . . . . . . . . . 6 . . . 26 . . . . . . . . . . . . . . . Robot Hit Streak 27 | . 4 2 . 1 5 10 . 14 2 11 4 3 19 . 10 . 26 27 15 15 14 5 9 11 . . 4 18 9 19 21 12 Robot Miss Streak 15 | . 3 3 . 2 3 2 . 5 4 3 3 . 3 . 2 . 2 8 1 2 10 4 6 5 . . 5 3 . 15 7 1 Penetration Max . | . . . . . . . . . . . . . . . . . . . . . . . . . . . . . . . . . Secondary Targets 9 | . 1 . . . 1 2 . 1 . 2 . . 2 . . . . . . . . . . . . . . . . . . . Max Gunslinging Chain 1 | . 1 . . . 1 1 . 1 . 1 . . 1 . . . . . . . . . . . . . . . . . . . Capacitor 154 | . . . . . . . . . . . . . . . . . . . . . . . . . . . . . . 21 133 . Shots Hit Robots 966 | . 46 2 . 1 54 66 6 70 4 36 6 3 104 . 11 . 49 41 55 17 32 11 43 60 . 1 7 55 7 22 155 2 Core Hits 1506 | . 27 5 . 1 66 27 4 58 3 28 3 2 79 . 3 . 96 19 35 5 104 7 38 104 . . 34 30 2 216 509 1 Critical Kills 1 | . . . . . . . . . . . . . . . . . . . . . . . . . . . . . . . 1 . Critical Parts Destroyed 2 | . . . . . . . . 1 . . . . 1 . . . . . . . . . . . . . . . . . . . Critical Strikes 31 | . 4 . . . 2 4 1 4 . . . . 4 . 1 . 1 . . . . 1 . . . . . . . . 9 . Burn 10 | . 4 . . . 2 . . . . . . . 3 . . . 1 . . . . . . . . . . . . . . . Meltdown 1 | . . . . . . . . . . . . . . . . . . . . . . . . . . . . . . . 1 . Destroy 1 | . . . . . . . . 1 . . . . . . . . . . . . . . . . . . . . . . . . Smash 1 | . . . . . . . . . . . . . 1 . . . . . . . . . . . . . . . . . . . Sever 18 | . . . . . . 4 1 3 . . . . . . 1 . . . . . . 1 . . . . . . . . 8 . Melee Attacks 111 | . . . . . . 19 11 47 . . 2 . 1 . . 28 . . . . . . . . . 1 . . 2 . . . Impact 1 | . . . . . . . . . . . . . 1 . . . . . . . . . . . . . . . . . . . Slashing 105 | . . . . . . 19 11 47 . . . . . . . 28 . . . . . . . . . . . . . . . . Piercing . | . . . . . . . . . . . . . . . . . . . . . . . . . . . . . . . . . Sneak Attacks 16 | . . . . . . 8 3 . . . 2 . . . . . . . . . . . . . . 1 . . 2 . . . Combat Hostiles 1 | . . . . . . 1 . . . . . . . . . . . . . . . . . . . . . . . . . . Follow-up Attacks . | . . . . . . . . . . . . . . . . . . . . . . . . . . . . . . . . . Damage Inflicted 73545 | . 913 281 . 15 2889 1695 319 3518 116 1955 88 84 4991 . 184 . 3441 2117 3236 842 3444 84 2549 4670 . . 1128 2553 218 5945 26222 48 Guns 7634 | . 617 16 . 15 811 887 . 692 116 786 88 84 2671 . 109 . 742 . . . . . . . . . . . . . . . Cannons 22752 | . . . . . . . . . . . . . 132 . . . 625 1899 2764 842 1105 . 1850 2728 . . 209 2553 218 900 6889 38 Explosions 39447 | . 296 265 . . 2074 . . 1867 . 1169 . . 2066 . . . 2074 218 472 . 2339 . 684 1942 . . 919 . . 5045 18017 . Melee 2120 | . . . . . . 808 319 951 . . . . 42 . . . . . . . . . . . . . . . . . . . Ramming 117 | . . . . . 4 . . 8 . . . . 80 . . . . . . . . . 15 . . . . . . . . 10 Kinetic 2162 | . 159 . . . 365 887 . 692 . 28 31 . . . . . . . . . . . . . . . . . . . . . Thermal 27970 | . 458 16 . 15 446 . . . 116 758 57 84 2671 . 184 . 872 1899 2764 842 1105 84 1850 2728 . . 209 2553 218 900 7103 38 Explosive 38888 | . 296 265 . . 1943 . . 1867 . 1169 . . 2066 . . . 2019 218 472 . 2339 . 684 1783 . . 919 . . 5045 17803 . Electromagnetic 972 | . . . . . 131 . . . . . . . 132 . . . 550 . . . . . . 159 . . . . . . . . Impact 42 | . . . . . . . . . . . . . 42 . . . . . . . . . . . . . . . . . . . Slashing 3394 | . . . . . . 808 319 951 . . . . . . . . . . . . . . . . . . . . . . 1316 . Piercing . | . . . . . . . . . . . . . . . . . . . . . . . . . . . . . . . . . Highest Corruption 9 | . . . . . . . . . . . . . 1 . . . . 1 6 6 6 6 9 7 7 7 . . . 6 3 4 Average Corruption 4 | . . . . . . . . . . . . . 1 . . . . 1 4 6 6 6 8 3 7 7 . . . 3 2 3 Corruption Purged 1 | . . . . . . . . . . . . . 1 . . . . . . . . . . . . . . . . . . . Corruption Blocked 58 | . . . . . . . . . . . . . . . . . . . . . . . . . . . . . 58 . . . Effects 180 | . . . . . . . . . . . . . 6 . . . . 7 7 32 43 22 39 12 1 4 . . . 2 3 2 Message Errors 48 | . . . . . . . . . . . . . 1 . . . . 1 2 7 7 8 14 5 . 1 . . . 1 1 . Matter Fused 45 | . . . . . . . . . . . . . 2 . . . . 2 . 10 14 4 9 2 . 1 . . . . 1 . Heat Flow Errors 14 | . . . . . . . . . . . . . . . . . . 1 . 3 2 3 3 2 . . . . . . . . Energy Discharges 19 | . . . . . . . . . . . . . 1 . . . . . 1 4 6 1 2 . . 2 . . . 1 . 1 Parts Fused 2 | . . . . . . . . . . . . . . . . . . 1 . . . 1 . . . . . . . . . . Data Loss (minor) 20 | . . . . . . . . . . . . . 1 . . . . . 1 1 4 2 9 . 1 . . . . . . 1 Data Loss (major) 15 | . . . . . . . . . . . . . . . . . . 1 1 3 6 2 . 1 . . . . . . 1 . Misfires 6 | . . . . . . . . . . . . . . . . . . . 1 3 . 1 1 . . . . . . . . . Alerts 4 | . . . . . . . . . . . . . . . . . . 1 1 1 1 . . . . . . . . . . . Weapon Failures 7 | . . . . . . . . . . . . . 1 . . . . . . . 3 . 1 2 . . . . . . . . Overload Shots . | . . . . . . . . . . . . . . . . . . . . . . . . . . . . . . . . . Overflow Damage 1639 | . . 38 . . 119 112 78 21 . . . . 107 . 9 . 102 52 59 98 38 . 65 180 . . 49 23 . 33 456 . Projectiles 892 | . . . . . . . . . . . . . 3 . 9 . 60 52 59 98 38 . 54 160 . . 13 23 . . 323 . Explosions 494 | . . 38 . . 119 . . . . . . . 62 . . . 42 . . . . . 11 20 . . 36 . . 33 133 . Melee 253 | . . . . . . 112 78 21 . . . . 42 . . . . . . . . . . . . . . . . . . . Knockbacks 1 | . . . . . . . . . . . . . 1 . . . . . . . . . . . . . . . . . . . Impact 1 | . . . . . . . . . . . . . 1 . . . . . . . . . . . . . . . . . . . Kinetic . | . . . . . . . . . . . . . . . . . . . . . . . . . . . . . . . . . Secondary . | . . . . . . . . . . . . . . . . . . . . . . . . . . . . . . . . . Self-Inflicted Damage 924 | . 31 51 . . 93 . . 163 . 41 . . 80 . . . . 39 . . 104 . 17 195 . . . . . 11 95 4 Shots 44 | . 1 3 . . 4 . . 7 . 1 . . 3 . . . . 2 . . 6 . 1 10 . . . . . 1 5 . Rammed 9 | . . . . . . . . . . . . . 7 . . . . . . . . . . . . . . . . . . 2 Targets Rammed 13 | . . . . . 1 . . 2 . . . . 7 . . . . . . . . . 1 . . . . . . . . 2 Kicked 4 | . . . . . 1 . . 2 . . . . . . . . . . . . . . 1 . . . . . . . . . Crushed . | . . . . . . . . . . . . . . . . . . . . . . . . . . . . . . . . . Highest Temperature 402 | . 231 51 . 51 158 36 . 270 297 252 . . 402 308 280 144 285 199 . 251 187 177 83 124 . . . . . 18 340 . Average Temperature 96 | . 66 21 . 29 38 14 . 88 119 92 . . 94 119 114 63 113 32 . 117 100 89 51 61 . . . . . 10 133 . Received Heat Transfer 4224 | . 339 . . . 338 72 24 533 . 357 . . 521 . 8 . 308 219 32 36 126 . 242 8 . . 14 58 . 446 543 . Effects 18 | . . . . . . . . 2 4 3 . . 5 3 1 . . . . . . . . . . . . . . . . . Shutdowns 1 | . . . . . . . . . . . . . 1 . . . . . . . . . . . . . . . . . . . Energy Bleed 6 | . . . . . . . . 1 1 . . . 1 2 1 . . . . . . . . . . . . . . . . . Interference 11 | . . . . . . . . 1 3 3 . . 3 1 . . . . . . . . . . . . . . . . . . Siege Activations 32 | . . . . . . . . . . . . . 13 . . . 8 . . . . . . . . . . . . . 11 . Total Turns 481 | . . . . . . . . . . . . . 198 . . . 96 . . . . . . . . . . . . . 187 . Longest Duration 49 | . . . . . . . . . . . . . 34 . . . 21 . . . . . . . . . . . . . 49 . Robots Corrupted 4 | . . . . . . . . . . . . . 1 . . . 3 . . . . . . . . . . . . . . . Combat Hostiles 3 | . . . . . . . . . . . . . . . . . 3 . . . . . . . . . . . . . . . Parts Fried 2 | . . . . . . . . . . . . . 2 . . . . . . . . . . . . . . . . . . . Impact Corruptions 2 | . . . . . . . . . . . . . 2 . . . . . . . . . . . . . . . . . . . Robots Melted 2 | . . . . . . . . . . . . . . . . . . . . . . . . . . . . 1 . . 1 . Combat Hostiles 2 | . . . . . . . . . . . . . . . . . . . . . . . . . . . . 1 . . 1 . Parts Melted 35 | . 2 . . . 2 . . . . . 1 . 7 . . . 2 2 3 2 2 . . 2 . . 1 7 . . 2 . Heat Transferred 20578 | . 1443 37 . 37 1073 . . . 148 962 74 111 3552 . 407 . 844 1025 1400 425 625 407 1000 1425 . . 125 1350 125 475 3471 37 Parts Sabotaged 2 | . . . . . . . . . . . . . . . . . . . . . . . . . . . . . . . 2 . Parts Stolen . | . . . . . . . . . . . . . . . . . . . . . . . . . . . . . . . . . Parts Stripped . | . . . . . . . . . . . . . . . . . . . . . . . . . . . . . . . . . Power Chain Reactions 3 | . . . . . 1 . . . . . . . . . . . 1 . . . . . . 1 . . . . . . . . Missiles Intercepted . | . . . . . . . . . . . . . . . . . . . . . . . . . . . . . . . . . Alert | -11 -10 -10 -10 -9 -8 -8 -7 -7 -7 -7 -6 -6 -6 -6 -6 -6 -6 -5 -5 -5 -5 -5 -4 -4 -4 -4 -3 -3 -2 -2 -1 -1 ------- Run | Jun Mat Min Exi Min Mat Sto Fac Gar Fac DSF Fac Was Fac Low Low Zio Dee Pro Fac Upp Upp Zhi Pro Fac Upp War Pro Res Res Qua Acc Com Peak Influence 4205 | . 295 262 . 66 557 880 209 1408 747 704 436 156 779 . . . . . 299 . . . . 1301 . . . 638 411 2253 4205 2705 Initial 2633 | . . 99 . . . 192 109 10 739 403 369 152 . . . . . . . . . . . 900 . . . 81 274 231 1327 2633 Average 529 | . 124 168 . 31 263 355 86 700 715 571 414 109 226 . . . . . 121 . . . . 771 . . . 287 279 1851 2207 2640 Maximum Alert Level 5 | . 1 1 . . 2 3 1 4 3 3 2 . 3 . . . . . 1 . . . . 4 . . . 2 2 5 5 5 Low Security (%) 34 | 100 72 93 . 100 31 5 94 11 . . . 100 58 . . . . . 77 . . . . . . . . 29 14 . . . Level 1 21 | . 27 6 . . 44 62 5 9 . . 36 . 11 . . . . . 22 . . . . 3 . . . 50 62 . . . Level 2 20 | . . . . . 23 29 . 23 14 73 63 . 26 . . . . . . . . . . 44 . . . 19 22 . . . Level 3 11 | . . . . . . 3 . 41 85 25 . . 3 . . . . . . . . . . 39 . . . . . . . . Level 4 6 | . . . . . . . . 13 . . . . . . . . . . . . . . . 12 . . . . . . 51 . Level 5 1 | . . . . . . . . . . . . . . . . . . . . . . . . . . . . . . . . 100 High Security 3 | . . . . . . . . . . . . . . . . . . . . . . . . . . . . . . . 48 . Max Security 1 | . . . . . . . . . . . . . . . . . . . . . . . . . . . . . . 99 . . Sterilizations 1 | . . . . . . . . . . 1 . . . . . . . . . . . . . . . . . . . . . . Squads Dispatched 85 | . 3 . . 1 3 5 1 . . 2 . . 14 . . . . . 4 . 1 . . 4 . . 1 5 3 7 28 3 Investigation 15 | . 1 . . 1 1 3 . . . . . . 3 . . . . . . . . . . 2 . . . . 1 . . 3 Extermination 9 | . . . . . . . . . . . . . 3 . . . . . 2 . . . . 2 . . . 1 . . 1 . Reinforcement 21 | . 2 . . . 2 . 1 . . 2 . . 6 . . . . . 2 . . . . . . . . . 2 . 4 . Assault 29 | . . . . . . 1 . . . . . . 1 . . . . . . . 1 . . . . . 1 2 . 6 17 . Garrison 11 | . . . . . . 1 . . . . . . 1 . . . . . . . . . . . . . . 2 . 1 6 . Intercept . | . . . . . . . . . . . . . . . . . . . . . . . . . . . . . . . . . Searches Triggered 3 | . . . . . . . . . . . . . . . . . . . . . . . . 3 . . . . . . . . Construction Impeded 5 | . . . . . 1 . . . . . . . 2 . . . . . 1 . . . . . . . . . . . 1 . Haulers Reinforced 5 | . . . . . . . . . . . . . 1 . . . . . . . . . . . . . . . 2 . 2 . Active Scanning Responses . | . . . . . . . . . . . . . . . . . . . . . . . . . . . . . . . . . Cargo Convoy Interrupts . | . . . . . . . . . . . . . . . . . . . . . . . . . . . . . . . . . Stealth | -11 -10 -10 -10 -9 -8 -8 -7 -7 -7 -7 -6 -6 -6 -6 -6 -6 -6 -5 -5 -5 -5 -5 -4 -4 -4 -4 -3 -3 -2 -2 -1 -1 --------- Run | Jun Mat Min Exi Min Mat Sto Fac Gar Fac DSF Fac Was Fac Low Low Zio Dee Pro Fac Upp Upp Zhi Pro Fac Upp War Pro Res Res Qua Acc Com Distress Signals 35 | . . . . . 6 5 . . . . . . . . . . . . . . . . 1 . . . . 1 15 1 4 2 Communications Jammed 23 | . . . . . . . . . . 4 . . . . . . . . . . . . . 8 . . 2 1 . 8 . . Distress Signals 17 | . . . . . . . . . . . . . . . . . . . . . . . . 8 . . 1 1 . 7 . . Times Spotted 638 | . 22 6 . 2 41 31 3 25 1 14 2 . 36 . 4 . 57 11 17 5 32 . 23 40 . . 8 26 22 40 156 14 Peak Tracking Total 37 | . 6 3 . 1 6 6 1 8 1 4 2 . 6 . 4 . 37 5 5 3 8 . 4 8 . . 4 4 9 23 19 12 Tactical Retreats 23 | . . . . . 1 3 . . . 1 . . . . 1 . 9 . . . 1 . 3 1 . . . 1 . . . 2 Traps | -11 -10 -10 -10 -9 -8 -8 -7 -7 -7 -7 -6 -6 -6 -6 -6 -6 -6 -5 -5 -5 -5 -5 -4 -4 -4 -4 -3 -3 -2 -2 -1 -1 ------- Run | Jun Mat Min Exi Min Mat Sto Fac Gar Fac DSF Fac Was Fac Low Low Zio Dee Pro Fac Upp Upp Zhi Pro Fac Upp War Pro Res Res Qua Acc Com Traps Triggered 13 | . . . . . 1 3 . 3 . 1 2 . 2 . . . . . . . . . . 1 . . . . . . . . Indirectly . | . . . . . . . . . . . . . . . . . . . . . . . . . . . . . . . . . Trap Hack Attempts . | . . . . . . . . . . . . . . . . . . . . . . . . . . . . . . . . . Triggered . | . . . . . . . . . . . . . . . . . . . . . . . . . . . . . . . . . Disarmed . | . . . . . . . . . . . . . . . . . . . . . . . . . . . . . . . . . Reprogrammed . | . . . . . . . . . . . . . . . . . . . . . . . . . . . . . . . . . Reused . | . . . . . . . . . . . . . . . . . . . . . . . . . . . . . . . . . Traps Extracted . | . . . . . . . . . . . . . . . . . . . . . . . . . . . . . . . . . Installed . | . . . . . . . . . . . . . . . . . . . . . . . . . . . . . . . . . Triggered 20 | . . . . . . . . . . . . . . . . . . 1 . 1 2 . . . . 16 . . . . . . Machines | -11 -10 -10 -10 -9 -8 -8 -7 -7 -7 -7 -6 -6 -6 -6 -6 -6 -6 -5 -5 -5 -5 -5 -4 -4 -4 -4 -3 -3 -2 -2 -1 -1 ---------- Run | Jun Mat Min Exi Min Mat Sto Fac Gar Fac DSF Fac Was Fac Low Low Zio Dee Pro Fac Upp Upp Zhi Pro Fac Upp War Pro Res Res Qua Acc Com Machines Disabled 55 | . 1 . . . 5 7 . 14 . . 2 . 4 . . 1 1 . . . 1 1 . 6 . 2 . 2 2 3 3 . Max in Single Turn 2 | . 1 . . . 1 1 . 2 . . 1 . 1 . . 1 1 . . . 1 1 . 2 . 1 . 1 1 1 1 . Garrison Access 6 | . . . . . . 1 . . . . . . 1 . . . . . . . . . . 1 . . . 1 2 . . . Garrison Relay 5 | . . . . . . . . 5 . . . . . . . . . . . . . . . . . . . . . . . . Phase Generator 1 | . . . . . . . . 1 . . . . . . . . . . . . . . . . . . . . . . . . Energy Cycler 1 | . . . . . . . . . . . . . . . . . . . . . . . . . . . . . . . 1 . Machines Repaired . | . . . . . . . . . . . . . . . . . . . . . . . . . . . . . . . . . Machines Sabotaged . | . . . . . . . . . . . . . . . . . . . . . . . . . . . . . . . . . Overloaded Fab Kills . | . . . . . . . . . . . . . . . . . . . . . . . . . . . . . . . . . Hacking | -11 -10 -10 -10 -9 -8 -8 -7 -7 -7 -7 -6 -6 -6 -6 -6 -6 -6 -5 -5 -5 -5 -5 -4 -4 -4 -4 -3 -3 -2 -2 -1 -1 --------- Run | Jun Mat Min Exi Min Mat Sto Fac Gar Fac DSF Fac Was Fac Low Low Zio Dee Pro Fac Upp Upp Zhi Pro Fac Upp War Pro Res Res Qua Acc Com Machines Accessed 53 | . 7 . 2 1 5 11 2 4 1 . 1 . 6 . . . . . . . . . . 6 . 2 . 2 . . . 3 Terminals 40 | . 6 . . . 5 10 1 4 1 . 1 . 3 . . . . . . . . . . 4 . . . 2 . . . 3 Fabricators 2 | . . . . . . . . . . . . . 1 . . . . . . . . . . 1 . . . . . . . . Repair Stations 2 | . . . . . . . . . . . . . 2 . . . . . . . . . . . . . . . . . . . Recycling Units 2 | . 1 . . . . 1 . . . . . . . . . . . . . . . . . . . . . . . . . . Scanalyzers . | . . . . . . . . . . . . . . . . . . . . . . . . . . . . . . . . . Garrison Access 2 | . . . . . . . 1 . . . . . . . . . . . . . . . . 1 . . . . . . . . Total Hacks 129 | . 14 . 2 1 13 32 7 5 1 . 2 . 15 . . . . . . . . . . 17 . 8 . 4 . . . 8 Successful 55 | . 6 . 2 1 4 15 3 3 1 . 1 . 3 . . . . . . . . . . 5 . 8 . 2 . . . 1 Failed 73 | . 7 . . . 9 17 4 2 . . 1 . 12 . . . . . . . . . . 12 . . . 2 . . . 7 Catastrophic 17 | . 2 . . . 1 4 1 . . . 1 . 3 . . . . . . . . . . 2 . . . 1 . . . 2 Database Lockouts 1 | . 1 . . . . . . . . . . . . . . . . . . . . . . . . . . . . . . . Manual 53 | . 6 . 1 . 6 13 6 . . . . . 4 . . 1 . . . . . . . 7 . . . 3 . . . 6 Terminals 98 | . 13 . . . 13 28 6 5 1 . 2 . 7 . . . . . . . . . . 11 . . . 4 . . . 8 Fabricators 6 | . . . . . . . . . . . . . 1 . . . . . . . . . . 5 . . . . . . . . Repair Stations 7 | . . . . . . . . . . . . . 7 . . . . . . . . . . . . . . . . . . . Recycling Units 5 | . 1 . . . . 4 . . . . . . . . . . . . . . . . . . . . . . . . . . Scanalyzers . | . . . . . . . . . . . . . . . . . . . . . . . . . . . . . . . . . Garrison Access 2 | . . . . . . . 1 . . . . . . . . . . . . . . . . 1 . . . . . . . . Terminal Hacks 40 | . 5 . 2 1 3 9 2 3 1 . 1 . . . . . . . . . . . . 3 . 8 . 2 . . . . Record 1 | . . . 1 . . . . . . . . . . . . . . . . . . . . . . . . . . . . . Robot Analysis 3 | . 1 . . . . 1 1 . . . . . . . . . . . . . . . . . . . . . . . . . Prototype ID Bank 7 | . . . . . . . . . . . . . . . . . . . . . . . . . . 7 . . . . . . Open Door 4 | . . . . 1 . 2 . . . . . . . . . . . . . . . . . . . 1 . . . . . . Open DSF 2 | . . . . . . . . . 1 . . . . . . . . . . . . . . . . . . 1 . . . . Branch Access Points 3 | . . . . . 1 . 1 . . . . . . . . . . . . . . . . 1 . . . . . . . . Terminal Index 1 | . . . . . . 1 . . . . . . . . . . . . . . . . . . . . . . . . . . Alert Level 5 | . . . . . 1 1 . . . . 1 . . . . . . . . . . . . 2 . . . . . . . . Unreport Threat 5 | . . . . . 1 3 . . . . . . . . . . . . . . . . . . . . . 1 . . . . Locate Traps 2 | . 2 . . . . . . . . . . . . . . . . . . . . . . . . . . . . . . . Hauler Manifests 2 | . 1 . . . . 1 . . . . . . . . . . . . . . . . . . . . . . . . . . Zone Layout 1 | . 1 . . . . . . . . . . . . . . . . . . . . . . . . . . . . . . . Garrison Registry 1 | . . . . . . . . 1 . . . . . . . . . . . . . . . . . . . . . . . . Patrol Navigation 1 | . . . . . . . . 1 . . . . . . . . . . . . . . . . . . . . . . . . Security Stations 1 | . . . . . . . . 1 . . . . . . . . . . . . . . . . . . . . . . . . EX-Prototype ID Bank 1 | . . . 1 . . . . . . . . . . . . . . . . . . . . . . . . . . . . . Fabricator Hacks 2 | . . . . . . . . . . . . . 1 . . . . . . . . . . 1 . . . . . . . . Network Status 2 | . . . . . . . . . . . . . 1 . . . . . . . . . . 1 . . . . . . . . Repair Station Hacks 2 | . . . . . . . . . . . . . 2 . . . . . . . . . . . . . . . . . . . Scan Component 2 | . . . . . . . . . . . . . 2 . . . . . . . . . . . . . . . . . . . Recycling Unit Hacks . | . . . . . . . . . . . . . . . . . . . . . . . . . . . . . . . . . Scanalyzer . | . . . . . . . . . . . . . . . . . . . . . . . . . . . . . . . . . Garrison Access Hacks 2 | . . . . . . . 1 . . . . . . . . . . . . . . . . 1 . . . . . . . . Unlock Access 1 | . . . . . . . 1 . . . . . . . . . . . . . . . . . . . . . . . . . Seal Access 1 | . . . . . . . . . . . . . . . . . . . . . . . . 1 . . . . . . . . Unauthorized Hacks 9 | . 1 . . . 1 6 . . . . . . . . . . . . . . . . . . . . . . . . . 1 Terminals 6 | . . . . . 1 4 . . . . . . . . . . . . . . . . . . . . . . . . . 1 Assimilate 2 | . . . . . 1 1 . . . . . . . . . . . . . . . . . . . . . . . . . . Botnet 3 | . . . . . . 2 . . . . . . . . . . . . . . . . . . . . . . . . . 1 Operators 1 | . . . . . . 1 . . . . . . . . . . . . . . . . . . . . . . . . . . Fabricators . | . . . . . . . . . . . . . . . . . . . . . . . . . . . . . . . . . Repair Stations . | . . . . . . . . . . . . . . . . . . . . . . . . . . . . . . . . . Recycling Units 3 | . 1 . . . . 2 . . . . . . . . . . . . . . . . . . . . . . . . . . Reject 1 | . . . . . . 1 . . . . . . . . . . . . . . . . . . . . . . . . . . Mask 1 | . . . . . . 1 . . . . . . . . . . . . . . . . . . . . . . . . . . Tunnel 1 | . 1 . . . . . . . . . . . . . . . . . . . . . . . . . . . . . . . Scanalyzers . | . . . . . . . . . . . . . . . . . . . . . . . . . . . . . . . . . Garrison Access . | . . . . . . . . . . . . . . . . . . . . . . . . . . . . . . . . . Data Cores Recovered 2 | . . . . . 1 . . . . . . . . . . . . . . . . . . 1 . . . . . . . . Used 1 | . . . . . 1 . . . . . . . . . . . . . . . . . . . . . . . . . . . Hacking Detections 39 | . 6 . . . 5 9 1 3 . . 1 . 5 . . . . . . . . . . 5 . . . 1 . . . 3 Full Trace Events 10 | . . . . . . 2 . . . . . . 3 . . . . . . . . . . 2 . . . . . . . 3 Feedback Events 1 | . . . . . . . . . . . . . . . . . . . . . . . . . . . . . . . . 1 Corruption 1 | . . . . . . . . . . . . . . . . . . . . . . . . . . . . . . . . 1 Feedback Blocked . | . . . . . . . . . . . . . . . . . . . . . . . . . . . . . . . . . Robot Schematics Acquired 4 | . . . . . . . . . . . . . . . . 4 . . . . . . . . . . . . . . . . Robots Built . | . . . . . . . . . . . . . . . . . . . . . . . . . . . . . . . . . Authchips . | . . . . . . . . . . . . . . . . . . . . . . . . . . . . . . . . . Time . | . . . . . . . . . . . . . . . . . . . . . . . . . . . . . . . . . Total Robot Build Rating . | . . . . . . . . . . . . . . . . . . . . . . . . . . . . . . . . . Part Schematics Acquired 14 | . . . . . . . . . . . . . . . . 14 . . . . . . . . . . . . . . . . Parts Built . | . . . . . . . . . . . . . . . . . . . . . . . . . . . . . . . . . Authchips . | . . . . . . . . . . . . . . . . . . . . . . . . . . . . . . . . . Time . | . . . . . . . . . . . . . . . . . . . . . . . . . . . . . . . . . Total Part Build Rating . | . . . . . . . . . . . . . . . . . . . . . . . . . . . . . . . . . Parts Repaired . | . . . . . . . . . . . . . . . . . . . . . . . . . . . . . . . . . Time . | . . . . . . . . . . . . . . . . . . . . . . . . . . . . . . . . . Parts Recycled . | . . . . . . . . . . . . . . . . . . . . . . . . . . . . . . . . . Recycled Matter . | . . . . . . . . . . . . . . . . . . . . . . . . . . . . . . . . . Retrieved Matter . | . . . . . . . . . . . . . . . . . . . . . . . . . . . . . . . . . Retrieved Components . | . . . . . . . . . . . . . . . . . . . . . . . . . . . . . . . . . Parts Scanalyzed . | . . . . . . . . . . . . . . . . . . . . . . . . . . . . . . . . . Part Schematics Acquired . | . . . . . . . . . . . . . . . . . . . . . . . . . . . . . . . . . Parts Damaged . | . . . . . . . . . . . . . . . . . . . . . . . . . . . . . . . . . Bothacking | -11 -10 -10 -10 -9 -8 -8 -7 -7 -7 -7 -6 -6 -6 -6 -6 -6 -6 -5 -5 -5 -5 -5 -4 -4 -4 -4 -3 -3 -2 -2 -1 -1 ------------ Run | Jun Mat Min Exi Min Mat Sto Fac Gar Fac DSF Fac Was Fac Low Low Zio Dee Pro Fac Upp Upp Zhi Pro Fac Upp War Pro Res Res Qua Acc Com Used RIF Installer . | . . . . . . . . . . . . . . . . . . . . . . . . . . . . . . . . . Robots Hacked 4 | . . . . . . . . . . . 1 . . . . . . . . . . . . . . 1 . . 2 . . . Non-combat 2 | . . . . . . . . . . . 1 . . . . . . . . . . . . . . . . . 1 . . . Combat 2 | . . . . . . . . . . . . . . . . . . . . . . . . . . 1 . . 1 . . . Robot Hacks Applied 4 | . . . . . . . . . . . 1 . . . . . . . . . . . . . . 1 . . 2 . . . parse_system 3 | . . . . . . . . . . . . . . . . . . . . . . . . . . 1 . . 2 . . . find_chute 1 | . . . . . . . . . . . 1 . . . . . . . . . . . . . . . . . . . . . Relay Couplers Released 34 | . . . . . . 2 . 22 . . . . 4 . . . . . . . . . . . . . . 3 3 . . . Machine Destruction 34 | . . . . . . 2 . 22 . . . . 4 . . . . . . . . . . . . . . 3 3 . . . Fabnet Peak Effective % . | . . . . . . . . . . . . . . . . . . . . . . . . . . . . . . . . . Robots Rewired . | . . . . . . . . . . . . . . . . . . . . . . . . . . . . . . . . . Allies Hacked . | . . . . . . . . . . . . . . . . . . . . . . . . . . . . . . . . . Hacks Repelled . | . . . . . . . . . . . . . . . . . . . . . . . . . . . . . . . . . Allies | -11 -10 -10 -10 -9 -8 -8 -7 -7 -7 -7 -6 -6 -6 -6 -6 -6 -6 -5 -5 -5 -5 -5 -4 -4 -4 -4 -3 -3 -2 -2 -1 -1 -------- Run | Jun Mat Min Exi Min Mat Sto Fac Gar Fac DSF Fac Was Fac Low Low Zio Dee Pro Fac Upp Upp Zhi Pro Fac Upp War Pro Res Res Qua Acc Com Total Allies 25 | . . . . 3 1 3 . . . . . . . . . 2 . . . . . . . . . . . . . . . 16 Largest Group 10 | . . . . 3 1 2 . . . . . . . . . 2 2 . . . . . . . . . . . . . . 10 Highest-Rated Group 305 | . . . . 40 16 101 . . . . . . . . . 192 192 . . . . . . . . . . . . . . 305 Highest-Rated Ally 178 | . . . . 16 16 100 . . . . . . . . . 96 96 . . . . . . . . . . . . . . 178 Total Orders . | . . . . . . . . . . . . . . . . . . . . . . . . . . . . . . . . . Ally Attacks 189 | . . . . 17 3 42 . . . . . . . . . . 57 . . . . . . . . . . . . . . 70 Total Damage 5323 | . . . . 141 46 1595 . . . . . . . . . . 1529 . . . . . . . . . . . . . . 2012 Kills 35 | . . . . 2 1 12 . . . . . . . . . . 11 . . . . . . . . . . . . . . 9 Allies Corrupted . | . . . . . . . . . . . . . . . . . . . . . . . . . . . . . . . . . Allies Melted 1 | . . . . . . . . . . . . . . . . . . . . . . . . . . . . . 1 . . . Field Lobotomies 1 | . . . . . . . . . . . . . . . . . . . . . . . . . . . . . . . . 1 Intel | -11 -10 -10 -10 -9 -8 -8 -7 -7 -7 -7 -6 -6 -6 -6 -6 -6 -6 -5 -5 -5 -5 -5 -4 -4 -4 -4 -3 -3 -2 -2 -1 -1 ------- Run | Jun Mat Min Exi Min Mat Sto Fac Gar Fac DSF Fac Was Fac Low Low Zio Dee Pro Fac Upp Upp Zhi Pro Fac Upp War Pro Res Res Qua Acc Com Robot Analysis Total 3 | . 1 . . . . 1 1 . . . . . . . . . . . . . . . . . . . . . . . . . Derelict Logs Recovered 13 | . . . . 1 . . . . . . . . . 1 3 2 . 3 . . 1 . 2 . . . . . . . . . Drone Launches . | . . . . . . . . . . . . . . . . . . . . . . . . . . . . . . . . . Drone Recoveries . | . . . . . . . . . . . . . . . . . . . . . . . . . . . . . . . . . Exploration | -11 -10 -10 -10 -9 -8 -8 -7 -7 -7 -7 -6 -6 -6 -6 -6 -6 -6 -5 -5 -5 -5 -5 -4 -4 -4 -4 -3 -3 -2 -2 -1 -1 ------------- Run | Jun Mat Min Exi Min Mat Sto Fac Gar Fac DSF Fac Was Fac Low Low Zio Dee Pro Fac Upp Upp Zhi Pro Fac Upp War Pro Res Res Qua Acc Com Turns Passed 33404 | 2 672 345 408 548 958 1905 767 1869 467 302 331 570 2378 1363 1245 1961 3839 1418 707 1176 1453 773 1281 1382 68 1786 355 799 783 185 1143 165 Spaces Moved 16026 | 1 336 172 215 296 489 1120 371 747 172 98 185 318 1130 735 615 1319 1988 628 242 283 626 321 597 568 33 836 183 279 470 65 329 259 Core 625 | . 7 . . . . . . . . . . . . . . 352 . . . . . . . . . . . . . . 7 259 Treads 6339 | . . . . . . . . . . 93 185 318 1130 735 615 888 1606 . . . . . . . . . . . 421 65 283 . Legs 8949 | 1 329 172 215 296 489 1120 371 747 172 5 . . . . . . 382 628 242 283 626 321 597 568 33 836 183 279 49 . 5 . Wheels 34 | . . . . . . . . . . . . . . . . . . . . . . . . . . . . . . . 34 . Hover 79 | . . . . . . . . . . . . . . . . 79 . . . . . . . . . . . . . . . . Flight . | . . . . . . . . . . . . . . . . . . . . . . . . . . . . . . . . . Fastest Speed 50 | 120 120 190 190 120 120 120 190 190 260 160 160 160 160 160 160 50 130 180 180 210 180 135 135 140 180 176 176 176 145 145 50 50 Average Speed 168 | 120 137 190 190 176 139 120 190 205 260 168 160 160 160 160 160 137 163 209 209 210 200 175 167 187 205 200 176 187 151 158 216 50 Slowest Speed 450 | 120 350 190 190 190 190 190 190 260 260 260 160 160 160 160 160 160 260 210 210 210 210 210 185 235 210 270 176 210 225 225 450 150 Overloaded Moves . | . . . . . . . . . . . . . . . . . . . . . . . . . . . . . . . . . Propulsion Burnouts . | . . . . . . . . . . . . . . . . . . . . . . . . . . . . . . . . . Robots Hopped . | . . . . . . . . . . . . . . . . . . . . . . . . . . . . . . . . . Cave-ins Triggered . | . . . . . . . . . . . . . . . . . . . . . . . . . . . . . . . . . Teleports 1 | . . . . . . . . . . . . . . . . . . . . . . . . . . 1 . . . . . . Exploration Rate (%) 47 | 2 62 49 61 37 39 91 12 89 5 70 6 96 35 94 67 86 92 75 6 56 71 72 61 17 5 81 34 12 23 20 21 13 Regions Visited 32 Branch Regions 18 Pre-discovered Areas 8 | . 1 . 1 1 . 1 . . . . . . . 1 1 2 . . . . . . . . . . . . . . . . Known Exits Taken 15 | . . . . . 1 . 1 . 1 . . . 1 1 1 1 . 1 1 1 1 1 1 1 . . . 1 . . . . Unknown Exits Taken 13 | 1 1 1 1 1 . 1 . . . . . . . . . . 1 . . . . . . . 1 1 1 . 1 1 1 . Scrap Searched 23 | . . . . . . . . . . . . . . 10 2 3 . 2 . 2 2 . 1 . . . 1 . . . . . Spaces Dug 211 | . 7 18 . . 45 1 4 32 . . . 2 21 12 6 2 7 . 2 6 7 . 4 14 . 2 . 10 3 2 2 2 Terrain Destroyed 1819 | . 28 37 . . 199 1 4 270 3 85 . 6 137 25 16 2 18 53 56 21 204 1 143 118 . 2 77 23 5 22 261 2 Melee 15 | . . . . . . 1 4 8 . . . . . . . 2 . . . . . . . . . . . . . . . . Projectile 285 | . . . . . . . . . 3 . . 6 21 25 16 . 18 16 15 21 17 1 24 34 . 2 7 23 5 8 21 2 AOE 1519 | . 28 37 . . 199 . . 262 . 85 . . 116 . . . . 37 41 . 187 . 119 84 . . 70 . . 14 240 . Terrain Rammed . | . . . . . . . . . . . . . . . . . . . . . . . . . . . . . . . . . Walls Destroyed . | . . . . . . . . . . . . . . . . . . . . . . . . . . . . . . . . . Machines Disabled . | . . . . . . . . . . . . . . . . . . . . . . . . . . . . . . . . . Actions | -11 -10 -10 -10 -9 -8 -8 -7 -7 -7 -7 -6 -6 -6 -6 -6 -6 -6 -5 -5 -5 -5 -5 -4 -4 -4 -4 -3 -3 -2 -2 -1 -1 --------- Run | Jun Mat Min Exi Min Mat Sto Fac Gar Fac DSF Fac Was Fac Low Low Zio Dee Pro Fac Upp Upp Zhi Pro Fac Upp War Pro Res Res Qua Acc Com Total 20943 | 2 466 182 215 325 659 1608 419 928 181 178 213 379 1535 889 830 1426 2524 669 381 833 765 496 804 774 35 946 199 476 527 123 668 288 Wait 2551 | . 44 . . 7 34 392 13 20 2 7 . . 201 110 175 28 294 4 35 521 82 105 131 77 . 50 7 124 12 2 61 13 Move 15997 | . 335 171 214 295 489 1119 371 746 171 97 185 317 1129 734 614 1318 1987 627 241 282 625 320 596 567 32 835 182 278 469 64 328 259 Hop . | . . . . . . . . . . . . . . . . . . . . . . . . . . . . . . . . . Pick Up 261 | . 15 1 1 4 13 9 7 5 1 8 5 8 18 3 . 20 48 1 25 . 4 17 4 21 . 7 . 3 4 1 8 . Fast Attach 173 | . 7 . . 2 11 8 3 6 . 5 2 12 13 2 . 6 31 2 3 2 . 6 1 7 . 11 . 8 11 3 10 1 Attach 85 | 1 1 1 . 1 3 4 3 5 . 6 4 . 5 . . 5 4 . 2 . . 1 6 1 . 4 . . 2 6 16 4 Detach 82 | . 1 . . . 1 1 4 . . . 2 1 3 . . 2 10 1 2 3 3 . 7 7 3 8 1 1 7 1 9 4 Swap 195 | . 4 3 . 5 19 4 1 23 . 13 3 4 27 4 9 2 13 1 2 . 4 1 7 6 . 2 1 1 4 4 28 . Drop 399 | 1 13 . . 10 18 14 6 1 1 8 5 28 28 5 1 14 89 3 28 7 3 24 7 22 . 22 . 13 9 4 15 . Fire 1061 | . 46 6 . 1 71 38 . 63 6 34 5 9 103 31 31 3 48 30 43 18 44 22 44 66 . 6 8 48 7 38 187 5 Melee 111 | . . . . . . 19 11 47 . . 2 . 1 . . 28 . . . . . . . . . 1 . . 2 . . . Ram 2 | . . . . . . . . . . . . . . . . . . . . . . . . . . . . . . . . 2 Kick 3 | . . . . . . . . 2 . . . . . . . . . . . . . . 1 . . . . . . . . . Crush 7 | . . . . . . . . . . . . . 7 . . . . . . . . . . . . . . . . . . . Escape Stasis 16 | . . . . . . . . 10 . . . . . . . . . . . . . . . . . . . . . . 6 . Rewire . | . . . . . . . . . . . . . . . . . . . . . . . . . . . . . . . . . Trap . | . . . . . . . . . . . . . . . . . . . . . . . . . . . . . . . . . Miscellaneous . | . . . . . . . . . . . . . . . . . . . . . . . . . . . . . . . . . Route ------- -11/Junkyard -10/Materials (discovered 4 exits: [*Mat x2] / [*Min x2]) -10/Mines (discovered 2 exits: [*Mat] / *Exi) -10/Exiles -9/Mines -8/Materials (discovered 3 exits: *Fac / *Sto x2) -8/Storage -7/Factory (discovered 3 exits: Low x2 / Gar) -7/Garrison (discovered 3 exits: *Fac x3) -7/Factory (discovered 2 exits: *Low / DSF) -7/DSF -6/Factory -6/Waste -6/Factory (discovered 3 exits: *Fac x2 / *Low) -6/Lower Caves -6/Lower Caves (discovered 2 exits: *Fac / *Zio) -6/Zion (discovered 2 exits: *Dee / [*Pro]) -6/Deep Caves -5/Proximity Caves -5/Factory (discovered 2 exits: Fac / *Upp) -5/Upper Caves -5/Upper Caves (discovered 2 exits: *Fac / *Zhi) -5/Zhirov -4/Proximity Caves -4/Factory (discovered 6 exits: *Res / *Upp x2 / Ext x2 / Arm) -4/Upper Caves -4/Warlord -3/Proximity Caves -3/Research -2/Research -2/Quarantine -1/Access -1/Command History --------- Turn | Location | Event 3 | -11/Junkyard | Discovered new exit (range 0) 3 | -11/Junkyard | Entered Materials 255 | -10/Materials | Central database locked down 311 | -10/Materials | Build established: Mutant 349 | -10/Materials | Discovered new exit (range 8) 357 | -10/Materials | Core integrity fell below 50% 394 | -10/Materials | Lost 3 parts (2n1u) 523 | -10/Materials | Discovered new exit (range 11) 543 | -10/Materials | Core integrity fell below 20% 622 | -10/Materials | Discovered new exit (range 11) 624 | -10/Materials | Discovered new exit (range 7) 675 | -10/Materials | Entered Mines 802 | -10/Mines | Discovered new exit (range 5) 889 | -10/Mines | Received a Rocket Launcher from a helpful Derelict 955 | -10/Mines | Deemed a non-threat by the Exiles lab entrance 955 | -10/Mines | Discovered new exit (range 5) 1020 | -10/Mines | Entered Exiles 1064 | -10/Exiles | Met 8R-AWN 1100 | -10/Exiles | Met EX-HEX 1161 | -10/Exiles | Met EX-BIN 1182 | -10/Exiles | Aligned with FarCom system 1184 | -10/Exiles | Given EX-Vault access code 1228 | -10/Exiles | Opened EX-Vault 1245 | -10/Exiles | Found Field Lobotomy Kit 1286 | -10/Exiles | Warned to stay clear of 0b10 Research branches 1343 | -10/Exiles | Met EX-DEC 1350 | -10/Exiles | Learned location of Zion (-6) 1413 | -10/Exiles | Discovered new exit (range 10) 1428 | -10/Exiles | Left Exiles lab with Field Lobotomy Kit 1428 | -10/Exiles | Entered Mines 1428 | -9/Mines | Assisted by bots powering up and referring to "LRC-V3" 1449 | -9/Mines | Met a Derelict bent on vengeance 1597 | -9/Mines | Met a Derelict shopkeep closing up shop 1972 | -9/Mines | Discovered new exit (range 3) 1976 | -9/Mines | Entered Materials 1976 | -8/Materials | Accompanied by 1 ally 1976 | -8/Materials | Evolved 4 slots: Propulsion x2, Utility x2 2296 | -8/Materials | Build established: Scavenger-Mutant 2653 | -8/Materials | Identified exit to Storage 2798 | -8/Materials | Discovered new exit (range 14) 2934 | -8/Materials | Entered Storage 3362 | -8/Storage | Met 01-MTF 3409 | -8/Storage | Build established: Mutant 3588 | -8/Storage | Garrison activated, responded to threat 3594 | -8/Storage | Discovered new exit (range 16) 3869 | -8/Storage | Learned location of Armory (-4) 4264 | -8/Storage | Build established: Hacker-Mutant 4839 | -8/Storage | Entered Factory 4839 | -7/Factory | Evolved 2 slots: Power x1, Utility x1 4848 | -7/Factory | Identified exit to Lower Caves 5138 | -7/Factory | Build established: Mutant 5606 | -7/Factory | Identified exit to Garrison 5606 | -7/Factory | Entered Garrison 5756 | -7/Garrison | Triggered checkpoint 5778 | -7/Garrison | Garrison Relay disabled 5796 | -7/Garrison | Learned Factory security intel 5978 | -7/Garrison | Triggered checkpoint 5980 | -7/Garrison | Triggered checkpoint 6020 | -7/Garrison | Destroyed 10 combat bots 6039 | -7/Garrison | Lost 3 parts (3u) 6093 | -7/Garrison | Discovered new exit (range 10) 6150 | -7/Garrison | Discovered new exit (range 23) 6150 | -7/Garrison | Discovered new exit (range 47) 6150 | -7/Garrison | Discovered new exit (range 60) 6154 | -7/Garrison | Triggered checkpoint 6217 | -7/Garrison | Garrison Relay disabled 6287 | -7/Garrison | Garrison Relay disabled 6441 | -7/Garrison | Garrison Relay disabled 6797 | -7/Garrison | Phase Generator disabled 6860 | -7/Garrison | Triggered checkpoint 6952 | -7/Garrison | Triggered checkpoint 7012 | -7/Garrison | Lost 3 parts (1p2n) 7024 | -7/Garrison | Garrison Relay disabled 7475 | -7/Garrison | Entered Factory 7682 | -7/Factory | Discovered exit to Lower Caves (range 12) 7942 | -7/Factory | Identified exit to DSF 7942 | -7/Factory | Entered DSF 8005 | -7/DSF | Additional patrols routed to DSF 8092 | -7/DSF | Sterilization system engaged 8112 | -7/DSF | Ambient heat levels rising (+10) 8112 | -7/DSF | Lost 5 parts (1p1n3u) 8127 | -7/DSF | Ambient heat levels rising (+10) 8142 | -7/DSF | Ambient heat levels rising (+10) 8157 | -7/DSF | Ambient heat levels rising (+10) 8172 | -7/DSF | Ambient heat levels rising (+10) 8187 | -7/DSF | Ambient heat levels rising (+10) 8202 | -7/DSF | Ambient heat levels rising (+10) 8217 | -7/DSF | Ambient heat levels rising (+10) 8224 | -7/DSF | Discovered new exit (range 14) 8232 | -7/DSF | Ambient heat levels rising (+10) 8244 | -7/DSF | Entered Factory 8244 | -6/Factory | Evolved 2 slots: Utility x2 8575 | -6/Factory | Sucked down chute 8575 | -6/Factory | Entered Waste 8575 | -6/Waste | The area was eerily silent 8949 | -6/Waste | Found Damper Plating 8984 | -6/Waste | Build established: Scavenger-Mutant 8990 | -6/Waste | Discovered new exit (range 16) 9005 | -6/Waste | Found Adv. Powered Armor 9072 | -6/Waste | Found Broken Adv. Powered Armor 9145 | -6/Waste | Entered Factory 9322 | -6/Factory | Spotted B-75 Beast 9417 | -6/Factory | Destroyed B-75 Beast 10213 | -6/Factory | Discovered new exit (range 13) 10235 | -6/Factory | Identified exit to Factory 10820 | -6/Factory | Discovered exit to Factory (range 15) 10945 | -6/Factory | Found Launcher Loader 10962 | -6/Factory | Discovered new exit (range 11) 10969 | -6/Factory | Found Prototype Launcher 10969 | -6/Factory | Identified Scatter Rocket Array 10972 | -6/Factory | Found Scatter Rocket Array 10997 | -6/Factory | Found Scatter Rocket Array 11020 | -6/Factory | Identified exit to Lower Caves 11383 | -6/Factory | Build established: Mutant 11474 | -6/Factory | Destroyed 7 combat bots 11523 | -6/Factory | Entered Lower Caves 11529 | -6/Lower Caves | Met a Warlord Commander 11530 | -6/Lower Caves | Learned location of Warlord (-4) 11542 | -6/Lower Caves | Found Encrypted Comm Array 11608 | -6/Lower Caves | Encountered a Warlord checkpoint 11875 | -6/Lower Caves | Learned Factory stockpile data 12063 | -6/Lower Caves | Spotted B-75 Beast 12852 | -6/Lower Caves | Discovered new exit (range 15) 12874 | -6/Lower Caves | Identified exit to Lower Caves 12886 | -6/Lower Caves | Entered another Lower Caves area 12902 | -6/Lower Caves | Discovered exit to Factory (range 8) 13773 | -6/Lower Caves | Spotted B-75 Beast 13939 | -6/Lower Caves | Encountered a Warlord checkpoint 13951 | -6/Lower Caves | Learned Factory terminal intel 13991 | -6/Lower Caves | Learned Factory stockpile data 14021 | -6/Lower Caves | Discovered new exit (range 13) 14130 | -6/Lower Caves | Identified exit to Zion 14131 | -6/Lower Caves | Entered Zion 14247 | -6/Zion | Discovered new exit (range 12) 14479 | -6/Zion | Received a visual enhancement algorithm 14867 | -6/Zion | Rebuked by Imprinter 15059 | -6/Zion | Learned location of 1 exit from Lower Caves 15076 | -6/Zion | Given A8's code to call for help 16063 | -6/Zion | Enhanced Grunt warped into view, answering call for help 16074 | -6/Zion | Enhanced Grunt warped into view, answering call for help 16075 | -6/Zion | Discovered new exit (range 5) 16077 | -6/Zion | Saw the warning signs outside the Deep Caves entrance 16080 | -6/Zion | Identified exit to Deep Caves 16092 | -6/Zion | Entered Deep Caves 16092 | -6/Deep Caves | Accompanied by 2 allies 16313 | -6/Deep Caves | Attacked by Z-Imprinter 16325 | -6/Deep Caves | Allies destroyed Z-Imprinter 16354 | -6/Deep Caves | Found Prototype Device 16354 | -6/Deep Caves | Identified Zio. Metafield Generator 16463 | -6/Deep Caves | Found Prototype Protection 16463 | -6/Deep Caves | Identified Zio. Weapon Casing 16506 | -6/Deep Caves | Found Zio. Weapon Casing 16615 | -6/Deep Caves | Z-Facility disabled 16715 | -6/Deep Caves | Build established: Scavenger-Mutant 16798 | -6/Deep Caves | Found Prototype Device 16798 | -6/Deep Caves | Identified Exp. Thermal Shield 17303 | -6/Deep Caves | Found Prototype Protection 17303 | -6/Deep Caves | Identified Zio. Heavy Carapace 17309 | -6/Deep Caves | Found Zio. Heavy Carapace 17351 | -6/Deep Caves | Found Zio. Weapon Casing 17356 | -6/Deep Caves | Found Zio. Weapon Casing 17480 | -6/Deep Caves | Found Zio. Weapon Casing 17643 | -6/Deep Caves | Discovered new exit (range 6) 18199 | -6/Deep Caves | Spotted as-33592 18206 | -6/Deep Caves | Destroyed as-33592 18251 | -6/Deep Caves | Spotted as-96402 18637 | -6/Deep Caves | Destroyed as-96402 18810 | -6/Deep Caves | Triggered Deep Caves wall 18810 | -6/Deep Caves | Spotted AS-88798 18810 | -6/Deep Caves | Spotted AS-47586 18811 | -6/Deep Caves | Destroyed AS-88798 18832 | -6/Deep Caves | Destroyed AS-47586 18850 | -6/Deep Caves | Destroyed 36 combat bots 18862 | -6/Deep Caves | Found Mobile Assembly Unit 18886 | -6/Deep Caves | Exposed GOLEM chamber 18890 | -6/Deep Caves | Found GOLEM Unit 19112 | -6/Deep Caves | Found GOLEM Unit 19116 | -6/Deep Caves | Found GOLEM Unit 19429 | -6/Deep Caves | Build established: Golem 19931 | -6/Deep Caves | Entered Proximity Caves 20292 | -5/Proximity Caves | Spotted B-75 Beast 20333 | -5/Proximity Caves | Destroyed B-75 Beast 20605 | -5/Proximity Caves | Learned Factory emergency access door positions 20624 | -5/Proximity Caves | Learned 4 Factory zone layouts 21265 | -5/Proximity Caves | Discovered exit to Factory (range 8) 21349 | -5/Proximity Caves | Entered Factory 21349 | -5/Factory | Evolved 2 slots: Utility x2 21350 | -5/Factory | Identified exit to Upper Caves 21351 | -5/Factory | Identified exit to Factory 21354 | -5/Factory | Loaded intel: 25 terminal locations 21774 | -5/Factory | Found Prototype Device 22056 | -5/Factory | Entered Upper Caves 22094 | -5/Upper Caves | Identified Active Sensor Suite 22609 | -5/Upper Caves | Attracted the attention of an 0b10 checkpoint 22692 | -5/Upper Caves | Discovered new exit (range 13) 22713 | -5/Upper Caves | Identified exit to Upper Caves 23232 | -5/Upper Caves | Entered another Upper Caves area 23333 | -5/Upper Caves | Discovered exit to Factory (range 6) 23468 | -5/Upper Caves | Found Alien Artifact 24046 | -5/Upper Caves | Attracted the attention of an 0b10 outpost 24081 | -5/Upper Caves | Destroyed 7 combat bots 24294 | -5/Upper Caves | Destroyed 9 combat bots 24434 | -5/Upper Caves | Spotted B-75 Beast 24565 | -5/Upper Caves | Destroyed B-75 Beast 24660 | -5/Upper Caves | Learned Factory emergency access door positions 24673 | -5/Upper Caves | Discovered new exit (range 7) 24681 | -5/Upper Caves | Attracted the attention of an 0b10 checkpoint 24684 | -5/Upper Caves | Identified exit to Zhirov 24685 | -5/Upper Caves | Entered Zhirov 24687 | -5/Zhirov | Discovered new exit (range 3) 24844 | -5/Zhirov | Found Alien Artifact 24844 | -5/Zhirov | Identified Integrated Dissipator 24844 | -5/Zhirov | Installed Integrated Dissipator, increased core heat dissipation (+20) 24913 | -5/Zhirov | Found Alien Artifact 25188 | -5/Zhirov | Cloak Generator disabled 25188 | -5/Zhirov | Attacked by Zhirov 25457 | -5/Zhirov | Identified exit to Proximity Caves 25458 | -5/Zhirov | Entered Proximity Caves 25463 | -4/Proximity Caves | Spotter reported a threat 25595 | -4/Proximity Caves | Learned Research emergency access door positions 26004 | -4/Proximity Caves | Spotter reported a threat 26009 | -4/Proximity Caves | Spotter reported a threat 26057 | -4/Proximity Caves | Spotter reported a threat 26062 | -4/Proximity Caves | Spotter reported a threat 26097 | -4/Proximity Caves | Spotted B-86 Titan 26151 | -4/Proximity Caves | Spotter reported a threat 26156 | -4/Proximity Caves | Lost 4 parts (1n2u1w) 26372 | -4/Proximity Caves | Attracted the attention of an 0b10 checkpoint 26706 | -4/Proximity Caves | Discovered exit to Factory (range 3) 26739 | -4/Proximity Caves | Entered Factory 26739 | -4/Factory | Evolved 2 slots: Utility x2 26740 | -4/Factory | Identified exit to Armory 26989 | -4/Factory | Search patrols dispatched 27103 | -4/Factory | Discovered new exit (range 12) 27239 | -4/Factory | Search patrols dispatched 27414 | -4/Factory | Identified exit to Upper Caves 27414 | -4/Factory | Identified exit to Extension 27489 | -4/Factory | Search patrols dispatched 27611 | -4/Factory | Destroyed 10 combat bots 27763 | -4/Factory | Found Quantum Capacitor 28121 | -4/Factory | Entered Upper Caves 28179 | -4/Upper Caves | A Derelict revealed a hidden shortcut to "reach the base" 28189 | -4/Upper Caves | Entered Warlord 28242 | -4/Warlord | Discovered new exit (range 8) 28254 | -4/Warlord | Identified Dimensional Node Initializer 28254 | -4/Warlord | Initialized slip node 28330 | -4/Warlord | System corruption cleaned by Quarantine Array 28677 | -4/Warlord | Received a Watcher feed algorithm from an ecstatic Tinkerer 29058 | -4/Warlord | Found Prototype Special Weapon 29058 | -4/Warlord | Identified RU-N14's Throwing Claymores v3 29075 | -4/Warlord | Found RU-N14's Throwing Claymores v3 29080 | -4/Warlord | Found RU-N14's Throwing Claymores v3 29303 | -4/Warlord | Warlord's base attacked by MAIN.C 29451 | -4/Warlord | Met Warlord 29510 | -4/Warlord | Found Prototype Reactor 29510 | -4/Warlord | Identified Vortex Chain Reactor 29517 | -4/Warlord | Found Prototype Device 29517 | -4/Warlord | Identified Exp. Phase Shifter 29653 | -4/Warlord | Warlord forces counterattacked 29943 | -4/Warlord | Found Prototype Energy Gun 29943 | -4/Warlord | Identified Vortex Rifle 29952 | -4/Warlord | Found Prototype Piercing Weapon 29952 | -4/Warlord | Identified Vortex Lance 29964 | -4/Warlord | Identified Transdimensional Reconstructor 29964 | -4/Warlord | Warped through subspace to slip node 29975 | -4/Warlord | Entered Proximity Caves 30054 | -3/Proximity Caves | Attracted the attention of an 0b10 outpost 30277 | -3/Proximity Caves | Discovered new exit (range 15) 30330 | -3/Proximity Caves | Entered Research 30330 | -3/Research | Evolved 2 slots: Power x1, Utility x1 30868 | -3/Research | Found Prototype Device 30868 | -3/Research | Identified Exp. Shield Generator 30943 | -3/Research | Build established: Infiltrator-Golem 31017 | -3/Research | Discovered new exit (range 8) 31031 | -3/Research | Identified exit to Research 31080 | -3/Research | First assault squad dispatched 31081 | -3/Research | Found Adv. Powered Armor 31129 | -3/Research | Entered another Research area 31129 | -2/Research | Warlord forces began assault on 0b10 31129 | -2/Research | Evolved 2 slots: Propulsion x2 31154 | -2/Research | Distinguished unit "Department No. 42" dispatched to help 31154 | -2/Research | Distinguished unit "Death Star" dispatched to help 31239 | -2/Research | Research machine network offline 31343 | -2/Research | Found Prototype Device 31347 | -2/Research | Found Prototype Device 31407 | -2/Research | Borebot progress halted 31438 | -2/Research | Met up with Warlord 31573 | -2/Research | Build established: Mutant 31576 | -2/Research | Found Corrupted Prototype Processor 31582 | -2/Research | Identified Adv. Particle Accelerator (x2) 31649 | -2/Research | Discovered new exit (range 15) 31846 | -2/Research | Spotted Striker 31848 | -2/Research | Spotted Striker 31859 | -2/Research | Spotted Striker 31874 | -2/Research | Spotted Striker 31912 | -2/Research | Entered Quarantine 31913 | -2/Quarantine | Maximum security lockdown engaged 31948 | -2/Quarantine | Found Alien Artifact 31948 | -2/Quarantine | Identified Core Reset Matrix 31948 | -2/Quarantine | Used Core Reset Matrix 31952 | -2/Quarantine | Detected hypermatrix surge 31952 | -2/Quarantine | Sensed 15 artifacts in vicinity 31970 | -2/Quarantine | Found Terrabomb 32016 | -2/Quarantine | Spotted Executioner 32017 | -2/Quarantine | Garrison activated, responded to threat 32021 | -2/Quarantine | Spotted Executioner 32027 | -2/Quarantine | Destroyed Executioner 32027 | -2/Quarantine | Destroyed Executioner 32054 | -2/Quarantine | Cryocooling Duct disabled 32059 | -2/Quarantine | Discovered new exit (range 16) 32063 | -2/Quarantine | Destroyed 25 combat bots 32069 | -2/Quarantine | Ambient heat levels rising (+20) 32095 | -2/Quarantine | Identified Exp. Melee Analysis Suite 32097 | -2/Quarantine | Entered Access 32097 | -1/Access | Evolved 2 slots: Power x1, Utility x1 32119 | -1/Access | Lost 4 parts (1p2u1w) 32310 | -1/Access | Build established: Generator-Mutant 32347 | -1/Access | First assault squad dispatched 32691 | -1/Access | High security lockdown imminent 32741 | -1/Access | Destroyed 12 combat bots 32771 | -1/Access | High security lockdown engaged 32853 | -1/Access | Destroyed 12 combat bots 32901 | -1/Access | Destroyed 9 combat bots 32908 | -1/Access | Spotted Investigator 32908 | -1/Access | Garrison activated, responded to threat 32908 | -1/Access | Scanned by Researcher 32916 | -1/Access | Destroyed Investigator 32979 | -1/Access | Destroyed 28 combat bots 32997 | -1/Access | Spotted Striker 32997 | -1/Access | Spotted Executioner 33002 | -1/Access | Destroyed Striker 33011 | -1/Access | Destroyed Executioner 33060 | -1/Access | Energy Cycler disabled 33060 | -1/Access | Spotted Striker 33063 | -1/Access | Garrison activated, responded to threat 33064 | -1/Access | Spotted Striker 33064 | -1/Access | Spotted Executioner 33070 | -1/Access | Destroyed Executioner 33078 | -1/Access | Destroyed Striker 33079 | -1/Access | Destroyed Striker 33099 | -1/Access | Garrison activated, responded to threat 33152 | -1/Access | Destroyed 24 combat bots 33153 | -1/Access | Lost 20 parts (5p3n12u) 33222 | -1/Access | Used Terrabomb 33222 | -1/Access | Discovered new exit (range 12) 33223 | -1/Access | Spotted Executioner 33223 | -1/Access | Spotted Striker 33224 | -1/Access | Spotted B-99 Colossus 33226 | -1/Access | Spotted B-99 Colossus 33235 | -1/Access | Core integrity fell below 50% 33240 | -1/Access | Emitted hypermatrix ping 33240 | -1/Access | Entered Command 33241 | -1/Command | Emitted hypermatrix ping 33246 | -1/Command | Assembled emerged from beneath the floor 33271 | -1/Command | Lost 9 parts (2p3n2u2w) 33327 | -1/Command | Assembled emerged from beneath the floor 33333 | -1/Command | Core integrity fell below 20% 33334 | -1/Command | Assimilated H-81 Overseer with FLK Orb 33405 | -1/Command | Destroyed by S-43 Plague with Heavy Machine Gun Last Messages --------------- 33370_ as-91639 destroyed. 33371_ as-25475 system corrupted by crushing effect. 33371_ as-25475 destroyed. 33372_ as-42126 destroyed. 33374_ as-34370 system corrupted by crushing effect. 33374_ as-34370 destroyed. 33375_ as-69410 destroyed. 33375_ Acquired 10 matter. 33378_ as-04163 suffers critical hit (Burn). 33378_ as-04163 destroyed. 33380_ Detected hypermatrix ping. 33382_ Slammed into K-01 Serf. 33394_ W-44 Eye sends out distress signal. 33396_ Slammed into K-01 Serf. 33396_ Destabilizing: Core damaged (-64). 33397_ Penetrated by Slug. 33400_ Slug penetrates Wall. 33400_ Penetrated by Slug. 33403_ Field Lobotomy Kit destroyed. [Achievement: Rambo] Map ----- +----------------------------------------------------+ | ?????????????????????????????????????????????????? | | ?????????????????????????????????????????????????? | | ?????????????????????????????????????????????????? | | ?????????????????????????????????????????????????? | | ?????????????????????????????????????????????????? | | ?????????????????????????????????????????????????? | | ?????????????????????????????????????????????????? | | ?????????????????????????????????????????????????? | | ?????????????????????? ??????????????????????????? | | ????????????????????? ???? ??????????????????? | | ?????????????????????? """" ??????????????????? | | ??????????????????????? "" ??????????????????? | | ?????????????w?????????? ??????????????????? | | ???????????????????????? ##############????? | | ???????????????????????? # """"""" #??### | | ???????????????????????? "" # """Y""" #### | | ??????????????????????? """" # ##"" | | ?????????????????" """" # ##"" | | ?????????????????" "" # ##"" | | ????????????????" # "" ##T | | ???????????????? / """"##"" | | ???????????????? ! # """"##"" | | ???????????????? # ! % [ "" ##"" | | ?????????????#####+########### # #### | | ?????????? ## # #?# | | ?????????? @ ##s" ! s #### | | ?????????? "" ##s########+#####?## | | ?????????? """" ##s######## #######% | | ??????????? !== """" s#s w ]]# % | | ????????????? !== "" + ] # % % % | | ?????????????? =?= # # #####+# | | ????????????? # # #?# | | ??????????????############### [ + #?# | | ????????????????????????????# h # #?# # | | ????????????????????????????# # #?# # | | ????????????????????????????# # #?# + | | ????????????????????????############## #?# # | | ????????????????????????# ??# ########## | | ????????????????????????# ?# | | ????????????????????????# ?# | | ????????????????????????# ! # #####+#### | | ????????????????????????+ # # | | ????????????????????????# + # | | ????????????????????????# "" # # | | ??????????????????????????? """" # # "" | | ????????????????????????????? """" ?# # """" | | ?????????????????????????????? "" ?# # """" | | ?????????????????????????????? ??# # "" | | ????????????????????????????? ! ??#### | | ?????????????????????????????#####??????# ?? ! | +----------------------------------------------------+ Best States ------------- Heat Dissipation 108 Energy Generation 109 Energy Capacity 2450 Matter Stores 300 Matter Capacity 300 Sight Range 16 Robot Scan Range 20 Terrain Scan Density 10 Jamming Range 14 Power Amplification 30 Additional Mass Support 20 Armor Coverage 2400 Resistance: KI 20 Resistance: TH 30 Resistance: EX 15 Resistance: EM 90 Resistance: I 15 Resistance: S 15 Resistance: P 15 Core Shielding 20 Propulsion Shielding 33 Weapon Shielding 100 Phase Shifting 8 Evasion (%) 63 Targeting Accuracy 8 Melee Accuracy 6 Core Analysis 8 Recoil Reduction 6 Particle Charging 50 Offensive Hacking 20 Item Schematics ----------------- None Robot Schematics ------------------ None Fabricated ------------ Nothing Alien Tech Used ----------------- Integrated Dissipator Dimensional Node Initializer Transdimensional Reconstructor Core Reset Matrix Terrabomb Achievements -------------- Rambo Challenges ------------ None Game ------ Seed NuclearTeslaDerivative Manual? 0 Play Time 04:04:57 Cumulative 218.7 hours Start 2023.05.03 @ 11:23:54 End 2023.05.03 @ 19:54:06 Sessions 3 Manual Loads 0 Difficulty Rogue Special Mode None Game No. 298 Rogue 298 Adventurer 0 Explorer 0 Win Type - Total 7 Types 6/0/0/1/0/0/0/0/0 Lore% 82 Gallery% 86 Achievement% 69 Wizard Run 0 Options --------- ASCII 0 Keyboard 0 Movement Numpad Keybinds 0 Fullscreen 2 Font 18/SmallcapsGlow Map View 76x50 Tactical HUD 1 Map Filters NONE Filters NONE Steam 1 RUN: 006f1627-f103-4f61-99d8-0a24f35f89aa